fUSD/lending_fUSD_20241104
["ID","MTS","AMOUNT","RATE_DAILY","PERIOD"]
[341279806,1730740263975,-500.0,0.00033971,2]
[341279807,1730740263985,-500.0,0.00033971,2]
[341279808,1730740263995,-500.0,0.00033971,2]
[341279809,1730740264004,-500.0,0.00033971,2]
[341279810,1730740264014,-609.62,0.00033971,2]
[341279811,1730740264025,-500.0,0.00033971,2]
[341279812,1730740264035,-500.0,0.00033971,2]
[341279813,1730740264045,-565.6,0.00033971,2]
[341279814,1730740264055,-500.0,0.00033971,2]
[341279815,1730740264065,-500.0,0.00033971,2]
[341279816,1730740264075,-500.0,0.00033971,2]
[341279817,1730740264086,-412.92,0.00033971,2]
[341279818,1730740264097,-500.0,0.00033971,2]
[341279819,1730740264110,-436.1,0.00033971,2]
[341279820,1730740264121,-500.0,0.00033971,2]
[341279821,1730740264131,-500.0,0.00033971,2]
[341279822,1730740264141,-500.0,0.00033971,2]
[341279823,1730740264151,-309.08130522,0.00033971,2]
[341279824,1730740264162,-500.0,0.00033971,2]
[341279825,1730740264178,-500.0,0.00033971,2]
[341279826,1730740264188,-500.0,0.00033971,2]
[341279827,1730740264198,-255.65149129,0.00033971,2]
[341279828,1730740264207,-523.12,0.00033971,2]
[341279829,1730740264217,-500.0,0.00033971,2]
[341279830,1730740264227,-500.0,0.00033971,2]
[341279831,1730740264237,-742.97,0.00033971,2]
[341279832,1730740264247,-500.0,0.00033971,2]
[341279833,1730740264257,-500.0,0.00033971,2]
[341279834,1730740264267,-500.0,0.00033971,2]
[341279835,1730740264278,-588.02,0.00033971,2]
[341279836,1730740264288,-684.77,0.00033971,2]
[341279837,1730740264297,-500.0,0.00033971,2]
[341279838,1730740264307,-589.4,0.00033971,2]
[341279839,1730740264317,-500.0,0.00033971,2]
[341279840,1730740264326,-500.0,0.00033971,2]
[341279841,1730740264335,-500.0,0.00033971,2]
[341279842,1730740264345,-500.0,0.00033971,2]
[341279843,1730740264355,-500.0,0.00033971,2]
[341279844,1730740264365,-500.0,0.00033971,2]
[341279845,1730740264375,-500.0,0.00033971,2]
[341279846,1730740264384,-5190.93,0.00033971,2]
[341279847,1730740264393,-500.0,0.00033971,2]
[341279848,1730740264403,-500.0,0.00033971,2]
[341279849,1730740264413,-633.45,0.00033971,2]
[341279850,1730740264426,-543.44,0.00033971,2]
[341279851,1730740264434,-527.86,0.00033971,2]
[341279852,1730740264444,-500.0,0.00033971,2]
[341279853,1730740264453,-1333.28,0.00033971,2]
[341279854,1730740264463,-500.0,0.00033971,2]
[341279855,1730740264473,-500.0,0.00033971,2]
[341279856,1730740264482,-500.0,0.00033971,2]
[341279857,1730740264491,-500.0,0.00033971,2]
[341279858,1730740264500,-500.0,0.00033971,2]
[341279859,1730740264509,-500.0,0.00033971,2]
[341279860,1730740264520,-457.49223141,0.00033971,2]
[341279861,1730740264529,-529.34452611,0.00033971,2]
[341279862,1730740264539,-586.54,0.00033971,2]
[341279863,1730740264549,-500.0,0.00033971,2]
[341279864,1730740264558,-500.0,0.00033971,2]
[341279865,1730740264567,-500.0,0.00033971,2]
[341279866,1730740264577,-430.0,0.00033971,2]
[341279867,1730740264586,-586.56,0.00033971,2]
[341279868,1730740264596,-500.0,0.00033971,2]
[341279869,1730740264605,-500.0,0.00033971,2]
[341279870,1730740264614,-500.0,0.00033971,2]
[341279871,1730740264623,-536.16,0.00033971,2]
[341279872,1730740264633,-500.0,0.00033971,2]
[341279873,1730740264643,-500.0,0.00033971,2]
[341279874,1730740264653,-500.0,0.00033971,2]
[341279875,1730740264665,-500.0,0.00033971,2]
[341279876,1730740264675,-500.0,0.00033971,2]
[341279877,1730740264684,-500.0,0.00033971,2]
[341279878,1730740264693,-500.0,0.00033971,2]
[341279879,1730740264702,-500.0,0.00033971,2]
[341279880,1730740264711,-500.0,0.00033971,2]
[341279881,1730740264721,-500.0,0.00033971,2]
[341279882,1730740264730,-500.0,0.00033971,2]
[341279883,1730740264739,-500.0,0.00033971,2]
[341279884,1730740264749,-500.0,0.00033971,2]
[341279885,1730740264758,-163.04890535,0.00033971,2]
[341279886,1730740264767,-525.64,0.00033971,2]
[341279887,1730740264776,-500.0,0.00033971,2]
[341279888,1730740264786,-500.0,0.00033971,2]
[341279889,1730740264797,-500.0,0.00033971,2]
[341279890,1730740264806,-500.0,0.00033971,2]
[341279891,1730740264816,-500.0,0.00033971,2]
[341279892,1730740264825,-500.0,0.00033971,2]
[341279893,1730740264835,-500.0,0.00033971,2]
[341279894,1730740264844,-500.0,0.00033971,2]
[341279895,1730740264854,-500.0,0.00033971,2]
[341279896,1730740264863,-302.22,0.00033971,2]
[341279897,1730740264872,-512.5,0.00033971,2]
[341279898,1730740264882,-500.0,0.00033971,2]
[341279899,1730740264891,-500.0,0.00033971,2]
[341279900,1730740264900,-500.0,0.00033971,2]
[341279901,1730740264909,-2148.52,0.00033971,2]
[341279902,1730740264921,-176.33600338,0.00033971,2]
[341279903,1730740264930,-500.0,0.00033971,2]
[341279904,1730740264940,-500.0,0.00033971,2]
[341279905,1730740264949,-500.0,0.00033971,2]
[341279906,1730740264958,-299.2199519,0.00033971,2]
[341279907,1730740264968,-500.0,0.00033971,2]
[341279908,1730740264977,-500.0,0.00033971,2]
[341279909,1730740264987,-500.0,0.00033971,2]
[341279910,1730740264996,-500.0,0.00033971,2]
[341279911,1730740265006,-1134.55,0.00033971,2]
[341279912,1730740265015,-500.0,0.00033971,2]
[341279913,1730740265026,-567.03,0.00033971,2]
[341279914,1730740265036,-500.0,0.00033971,2]
[341279915,1730740265045,-911.98,0.00033971,2]
[341279916,1730740265055,-500.0,0.00033971,2]
[341279918,1730740265064,-500.0,0.00033971,2]
[341279919,1730740265074,-478.8754841,0.00033971,2]
[341279920,1730740265083,-479.49,0.00033971,2]
[341279921,1730740265092,-500.0,0.00033971,2]
[341279922,1730740265105,-500.0,0.00033971,2]
[341279923,1730740265114,-162.57284182,0.00033971,2]
[341279924,1730740265124,-500.0,0.00033971,2]
[341279925,1730740265133,-500.0,0.00033971,2]
[341279926,1730740265143,-500.0,0.00033971,2]
[341279927,1730740265152,-500.0,0.00033971,2]
[341279928,1730740265162,-500.0,0.00033971,2]
[341279929,1730740265174,-500.0,0.00033971,2]
[341279930,1730740265186,-604.29222035,0.00033971,2]
[341279931,1730740265195,-500.0,0.00033971,2]
[341279932,1730740265205,-500.0,0.00033971,2]
[341279933,1730740265213,-500.0,0.00033971,2]
[341279934,1730740265223,-500.0,0.00033972,2]
[341279935,1730740265233,-500.0,0.00033972,2]
[341279936,1730740265243,-500.0,0.00033972,2]
[341279937,1730740265253,-596.02108856,0.00033972,2]
[341279938,1730740265263,-545.05803554,0.00033972,2]
[341279939,1730740265273,-579.23721047,0.00033972,2]
[341279940,1730740265284,-500.0,0.00033972,2]
[341279941,1730740265297,-605.12643493,0.00033972,2]
[341279942,1730740265308,-500.0,0.00033972,2]
[341279943,1730740265318,-500.0,0.00033972,2]
[341279944,1730740265328,-572.15339202,0.00033972,7]
[341279945,1730740265341,-500.0,0.00033972,2]
[341279946,1730740265350,-500.0,0.00033972,2]
[341279947,1730740265361,-347.93,0.00033972,2]
[341279948,1730740265372,-500.0,0.00033972,2]
[341279949,1730740265382,-500.0,0.00033972,2]
[341279950,1730740265392,-231.32,0.00033972,2]
[341279951,1730740265404,-617.04,0.00033972,2]
[341279952,1730740265417,-479.74,0.00033972,2]
[341279953,1730740265427,-500.0,0.00033972,2]
[341279954,1730740265436,-500.0,0.00033972,2]
[341279955,1730740265445,-500.0,0.00033972,2]
[341279956,1730740265454,-403.15455817,0.00033972,2]
[341279957,1730740265463,-500.0,0.00033972,2]
[341279958,1730740265473,-500.0,0.00033972,2]
[341279959,1730740265481,-500.0,0.00033972,2]
[341279960,1730740265491,-500.0,0.00033972,2]
[341279961,1730740265500,-500.0,0.00033972,2]
[341279962,1730740265509,-500.0,0.00033972,2]
[341279963,1730740265518,-235.19,0.00033972,2]
[341279964,1730740265528,-623.99,0.00033972,2]
[341279965,1730740265537,-500.0,0.00033972,2]
[341279966,1730740265546,-598.6,0.00033972,2]
[341279967,1730740265556,-500.0,0.00033972,2]
[341279968,1730740265567,-423.72,0.00033972,2]
[341279969,1730740265577,-302.98,0.00033972,2]
[341279970,1730740265587,-377.82,0.00033972,2]
[341279971,1730740265600,-500.0,0.00033972,2]
[341279972,1730740265609,-224.58,0.00033972,2]
[341279973,1730740265618,-500.0,0.00033972,2]
[341279974,1730740265627,-500.0,0.00033972,2]
[341279975,1730740265638,-405.84,0.00033972,2]
[341279976,1730740265648,-1022.37,0.00033972,2]
[341279977,1730740265658,-500.0,0.00033972,2]
[341279978,1730740265670,-500.0,0.00033972,2]
[341279979,1730740265680,-548.25,0.00033972,2]
[341279980,1730740265688,-500.0,0.00033972,2]
[341279981,1730740265698,-500.0,0.00033972,2]
[341279982,1730740265707,-2165.69,0.00033972,2]
[341279983,1730740265717,-500.0,0.00033972,2]
[341279984,1730740265727,-500.0,0.00033972,2]
[341279985,1730740265736,-500.0,0.00033972,2]
[341279986,1730740265745,-500.0,0.00033972,2]
[341279987,1730740265754,-500.0,0.00033972,2]
[341279988,1730740265763,-649.19,0.00033972,2]
[341279989,1730740265773,-583.25,0.00033972,2]
[341279990,1730740265782,-610.43,0.00033972,2]
[341279991,1730740265791,-500.0,0.00033972,2]
[341279992,1730740265800,-626.62,0.00033972,2]
[341279993,1730740265810,-292.82,0.00033972,2]
[341279994,1730740265819,-500.0,0.00033972,2]
[341279995,1730740265828,-500.0,0.00033972,2]
[341279996,1730740265837,-500.0,0.00033972,2]
[341279997,1730740265847,-541.90628439,0.00033972,2]
[341279998,1730740265856,-499.88,0.00033972,2]
[341279999,1730740265866,-973.83,0.00033972,2]
[341280000,1730740265875,-2718.58,0.00033972,2]
[341280001,1730740265884,-500.0,0.00033972,2]
[341280002,1730740265893,-500.0,0.00033972,2]
[341280003,1730740265903,-694.09,0.00033972,2]
[341280004,1730740265912,-962.3,0.00033972,2]
[341280005,1730740265923,-500.0,0.00033972,2]
[341280006,1730740265933,-603.31,0.00033972,2]
[341280007,1730740265943,-500.0,0.00033972,2]
[341280008,1730740265952,-1262.3,0.00033972,2]
[341280009,1730740265962,-312.44,0.00033972,2]
[341280010,1730740265971,-500.0,0.00033972,2]
[341280011,1730740265980,-500.0,0.00033972,2]
[341280012,1730740265990,-500.0,0.00033972,2]
[341280013,1730740266000,-500.0,0.00033972,2]
[341280014,1730740266009,-500.0,0.00033972,2]
[341280015,1730740266019,-1323.98,0.00033972,2]
[341280016,1730740266028,-500.0,0.00033972,2]
[341280017,1730740266038,-3246.91,0.00033972,2]
[341280018,1730740266047,-500.0,0.00033972,2]
[341280019,1730740266058,-500.0,0.00033972,2]
[341280020,1730740266068,-500.0,0.00033972,2]
[341280021,1730740266078,-461.28,0.00033972,2]
[341280022,1730740266089,-794.28,0.00033972,2]
[341280023,1730740266099,-766.93,0.00033972,2]
[341280024,1730740266112,-500.0,0.00033972,2]
[341280025,1730740266121,-500.0,0.00033972,2]
[341280026,1730740266131,-583.15,0.00033972,2]
[341280027,1730740266141,-500.0,0.00033972,2]
[341280028,1730740266151,-500.0,0.00033972,2]
[341280029,1730740266161,-500.0,0.00033972,2]
[341280030,1730740266175,-309.380282,0.00034,30]
[341280031,1730740266184,-1731.28255447,0.00034001,15]
[341280032,1730740266194,-150.0,0.0003406,2]
[341280033,1730740266315,-177.37,0.00034105,120]
[341280034,1730740266324,-233.49967687,0.00034245,2]
[341280035,1730740266333,-1297.84,0.00034245,2]
[341280036,1730740266342,-826.67,0.00034245,2]
[341280037,1730740266352,-284.12,0.00034245,2]
[341280038,1730740266361,-500.0,0.00034245,2]
[341280039,1730740266370,-500.0,0.00034245,2]
[341280040,1730740266379,-500.0,0.00034245,2]
[341280041,1730740266388,-500.0,0.00034245,2]
[341280042,1730740266397,-234.19312524,0.00034245,2]
[341280043,1730740266406,-500.0,0.00034245,2]
[341280044,1730740266416,-500.0,0.00034245,2]
[341280045,1730740266425,-500.0,0.00034245,2]
[341280046,1730740266434,-402.9,0.00034245,2]
[341280047,1730740266443,-531.24,0.00034245,2]
[341280048,1730740266452,-500.0,0.00034245,2]
[341280049,1730740266461,-509.74,0.00034245,2]
[341280050,1730740266471,-500.0,0.00034245,2]
[341280051,1730740266480,-500.0,0.00034245,2]
[341280052,1730740266489,-500.0,0.00034245,2]
[341280053,1730740266498,-500.0,0.00034245,2]
[341280054,1730740266507,-375.42,0.00034245,2]
[341280055,1730740266516,-500.0,0.00034245,2]
[341280056,1730740266525,-500.0,0.00034245,2]
[341280057,1730740266534,-159.51,0.00034245,2]
[341280058,1730740266543,-500.0,0.00034245,2]
[341280059,1730740266552,-500.0,0.00034245,2]
[341280060,1730740266561,-480.5199031,0.00034245,2]
[341280061,1730740266570,-500.0,0.00034245,2]
[341280062,1730740266579,-571.02,0.00034245,2]
[341280063,1730740266588,-500.0,0.00034245,2]
[341280064,1730740266597,-500.0,0.00034245,2]
[341280065,1730740266606,-500.0,0.00034245,2]
[341280066,1730740266615,-500.0,0.00034245,2]
[341280067,1730740266624,-438.18,0.00034245,2]
[341280068,1730740266633,-500.0,0.00034245,2]
[341280069,1730740266642,-500.0,0.00034245,2]
[341280070,1730740266651,-620.2,0.00034245,2]
[341280071,1730740266660,-500.0,0.00034245,2]
[341280072,1730740266672,-260.0,0.00034245,2]
[341280073,1730740266685,-500.0,0.00034245,2]
[341280074,1730740266694,-494.60277262,0.00034245,2]
[341280075,1730740266703,-500.0,0.00034245,2]
[341280076,1730740266712,-638.88,0.00034245,2]
[341280077,1730740266721,-500.0,0.00034245,2]
[341280078,1730740266730,-464.48,0.00034245,2]
[341280079,1730740266740,-173.25,0.00034245,2]
[341280080,1730740266749,-500.0,0.00034245,2]
[341280081,1730740266758,-500.0,0.00034245,2]
[341280082,1730740266767,-500.0,0.00034245,2]
[341280083,1730740266775,-500.0,0.00034245,2]
[341280084,1730740266785,-174.74,0.00034245,2]
[341280085,1730740266794,-500.0,0.00034245,2]
[341280086,1730740266803,-500.0,0.00034245,2]
[341280087,1730740266812,-500.0,0.00034245,2]
[341280088,1730740266822,-470.54,0.00034245,2]
[341280089,1730740266831,-156.4,0.00034245,2]
[341280090,1730740266841,-500.0,0.00034245,2]
[341280091,1730740266850,-500.0,0.00034245,2]
[341280092,1730740266859,-500.0,0.00034245,2]
[341280093,1730740266868,-500.0,0.00034245,2]
[341280094,1730740266877,-500.0,0.00034245,2]
[341280095,1730740266887,-500.0,0.00034245,2]
[341280096,1730740266896,-500.0,0.00034245,2]
[341280097,1730740266905,-500.0,0.00034245,2]
[341280098,1730740266915,-500.0,0.00034245,2]
[341280099,1730740266925,-500.0,0.00034245,2]
[341280100,1730740266934,-500.0,0.00034245,2]
[341280101,1730740266943,-742.97,0.00034245,2]
[341280102,1730740266952,-300.29,0.00034245,2]
[341280103,1730740266963,-500.0,0.00034245,2]
[341280104,1730740266973,-500.0,0.00034245,2]
[341280105,1730740266983,-588.02,0.00034245,2]
[341280106,1730740266993,-684.77,0.00034245,2]
[341280107,1730740267002,-500.0,0.00034245,2]
[341280108,1730740267011,-500.0,0.00034245,2]
[341280109,1730740267021,-591.13,0.00034245,2]
[341280110,1730740267030,-500.0,0.00034245,2]
[341280111,1730740267039,-533.91240805,0.00034245,2]
[341280112,1730740267049,-5190.93,0.00034245,2]
[341280113,1730740267059,-500.0,0.00034245,2]
[341280114,1730740267068,-181.68653337,0.00034245,2]
[341280115,1730740267078,-500.0,0.00034245,2]
[341280116,1730740267089,-1333.28,0.00034245,2]
[341280117,1730740267100,-458.86169732,0.00034245,2]
[341280118,1730740267113,-500.0,0.00034245,2]
[341280119,1730740267122,-500.0,0.00034245,2]
[341280120,1730740267132,-500.0,0.00034245,2]
[341280121,1730740267142,-409.3,0.00034245,2]
[341280122,1730740267151,-500.0,0.00034245,2]
[341280123,1730740267160,-500.0,0.00034245,2]
[341280124,1730740267174,-500.0,0.00034245,2]
[341280125,1730740267185,-500.0,0.00034245,2]
[341280126,1730740267195,-500.0,0.00034245,2]
[341280127,1730740267204,-500.0,0.00034245,2]
[341280128,1730740267214,-500.0,0.00034245,2]
[341280129,1730740267223,-515.26,0.00034245,2]
[341280130,1730740267232,-500.0,0.00034245,2]
[341280131,1730740267241,-500.0,0.00034245,2]
[341280132,1730740267250,-500.0,0.00034245,2]
[341280133,1730740267259,-352.76728714,0.00034245,2]
[341280134,1730740267268,-500.0,0.00034245,2]
[341280135,1730740267278,-500.0,0.00034245,2]
[341280136,1730740267288,-615.4,0.00034245,2]
[341280137,1730740267297,-501.32587509,0.00034245,2]
[341280138,1730740267306,-588.66,0.00034245,2]
[341280139,1730740267315,-500.0,0.00034245,2]
[341280140,1730740267324,-500.0,0.00034245,2]
[341280141,1730740267333,-221.38,0.00034245,2]
[341280142,1730740267343,-422.14,0.00034245,2]
[341280143,1730740267352,-500.0,0.00034245,2]
[341280144,1730740267361,-512.5,0.00034245,2]
[341280145,1730740267370,-500.0,0.00034245,2]
[341280146,1730740267379,-500.0,0.00034245,2]
[341280147,1730740267388,-2148.52,0.00034245,2]
[341280148,1730740267398,-500.0,0.00034245,2]
[341280149,1730740267407,-500.0,0.00034245,2]
[341280150,1730740267416,-500.0,0.00034245,2]
[341280151,1730740267428,-500.0,0.00034245,2]
[341280152,1730740267437,-500.0,0.00034245,2]
[341280153,1730740267446,-500.0,0.00034245,2]
[341280154,1730740267455,-1134.55,0.00034245,2]
[341280155,1730740267464,-500.0,0.00034245,2]
[341280156,1730740267473,-911.98,0.00034245,2]
[341280157,1730740267483,-500.0,0.00034245,2]
[341280158,1730740267492,-500.0,0.00034245,2]
[341280159,1730740267501,-500.0,0.00034245,2]
[341280160,1730740267510,-500.0,0.00034245,2]
[341280161,1730740267520,-500.0,0.00034245,2]
[341280162,1730740267529,-500.0,0.00034245,2]
[341280163,1730740267538,-500.0,0.00034245,2]
[341280164,1730740267548,-500.0,0.00034245,2]
[341280165,1730740267557,-500.0,0.00034245,2]
[341280166,1730740267567,-500.0,0.00034245,2]
[341280167,1730740267576,-500.0,0.00034245,2]
[341280168,1730740267585,-507.98265987,0.00034246,2]
[341280169,1730740267594,-500.0,0.00034246,2]
[341280170,1730740267603,-500.0,0.00034246,2]
[341280171,1730740267613,-500.0,0.00034246,2]
[341280172,1730740267622,-500.0,0.00034246,2]
[341280173,1730740267631,-500.0,0.00034246,2]
[341280174,1730740267640,-500.0,0.00034246,2]
[341280175,1730740267649,-216.88310821,0.00034246,2]
[341280176,1730740267659,-235.29936148,0.00034246,2]
[341280177,1730740267670,-500.0,0.00034246,2]
[341280178,1730740267679,-370.25,0.00034246,2]
[341280179,1730740267688,-190.62,0.00034246,2]
[341280180,1730740267697,-500.0,0.00034246,2]
[341280181,1730740267706,-500.0,0.00034246,2]
[341280182,1730740267716,-500.0,0.00034246,2]
[341280183,1730740267725,-500.0,0.00034246,2]
[341280184,1730740267734,-500.0,0.00034246,2]
[341280185,1730740267743,-500.0,0.00034246,2]
[341280186,1730740267752,-400.34211299,0.00034246,2]
[341280187,1730740267761,-623.99,0.00034246,2]
[341280188,1730740267770,-241.7,0.00034246,2]
[341280189,1730740267779,-500.0,0.00034246,2]
[341280190,1730740267788,-172.62,0.00034246,2]
[341280191,1730740267797,-642.9,0.00034246,2]
[341280192,1730740267806,-256.6,0.00034246,2]
[341280193,1730740267815,-1022.37,0.00034246,2]
[341280194,1730740267825,-500.0,0.00034246,2]
[341280195,1730740267834,-500.0,0.00034246,2]
[341280196,1730740267843,-548.25,0.00034246,2]
[341280197,1730740267852,-500.0,0.00034246,2]
[341280198,1730740267861,-156.482156,0.00034246,2]
[341280199,1730740267870,-500.0,0.00034246,2]
[341280200,1730740267879,-2165.69,0.00034246,2]
[341280201,1730740267888,-404.38,0.00034246,2]
[341280202,1730740267898,-184.44,0.00034246,2]
[341280203,1730740267907,-457.67006301,0.00034246,2]
[341280204,1730740267916,-500.0,0.00034246,2]
[341280205,1730740267927,-500.0,0.00034246,2]
[341280206,1730740267936,-649.19,0.00034246,2]
[341280207,1730740267945,-583.25,0.00034246,2]
[341280208,1730740267955,-610.43,0.00034246,2]
[341280209,1730740267964,-500.0,0.00034246,2]
[341280210,1730740267974,-626.62,0.00034246,2]
[341280211,1730740267983,-500.0,0.00034246,2]
[341280212,1730740267992,-500.0,0.00034246,2]
[341280213,1730740268002,-500.0,0.00034246,2]
[341280214,1730740268011,-973.83,0.00034246,2]
[341280215,1730740268020,-2718.58,0.00034246,2]
[341280216,1730740268030,-500.0,0.00034246,2]
[341280217,1730740268039,-584.45266355,0.00034246,2]
[341280218,1730740268048,-694.09,0.00034246,2]
[341280219,1730740268057,-962.3,0.00034246,2]
[341280220,1730740268066,-403.29,0.00034246,2]
[341280221,1730740268076,-603.31,0.00034246,2]
[341280222,1730740268085,-500.0,0.00034246,2]
[341280223,1730740268095,-1262.3,0.00034246,2]
[341280224,1730740268109,-500.0,0.00034246,2]
[341280225,1730740268119,-500.0,0.00034246,2]
[341280226,1730740268129,-512.33,0.00034246,2]
[341280227,1730740268139,-500.0,0.00034246,2]
[341280228,1730740268149,-500.0,0.00034246,2]
[341280229,1730740268158,-1323.98,0.00034246,2]
[341280230,1730740268171,-500.0,0.00034246,2]
[341280231,1730740268182,-3246.91,0.00034246,2]
[341280232,1730740268191,-500.0,0.00034246,2]
[341280233,1730740268200,-500.0,0.00034246,2]
[341280234,1730740268210,-500.0,0.00034246,2]
[341280235,1730740268219,-794.28,0.00034246,2]
[341280236,1730740268228,-766.93,0.00034246,2]
[341280237,1730740268237,-500.0,0.00034246,2]
[341280238,1730740268247,-160.75945988,0.00034246,2]
[341280239,1730740268256,-583.15,0.00034246,2]
[341280240,1730740268265,-500.0,0.00034246,2]
[341280241,1730740268275,-500.0,0.00034246,2]
[341280242,1730740268285,-500.0,0.00034246,2]
[341280243,1730740268295,-1297.84,0.00034519,2]
[341280244,1730740268305,-826.67,0.00034519,2]
[341280245,1730740268314,-640.48,0.00034519,2]
[341280246,1730740268324,-500.0,0.00034519,2]
[341280247,1730740268333,-500.0,0.00034519,2]
[341280248,1730740268342,-500.0,0.00034519,2]
[341280249,1730740268352,-500.0,0.00034519,2]
[341280250,1730740268470,-233.66,0.00034519,2]
[341280251,1730740268480,-500.0,0.00034519,2]
[341280252,1730740268489,-370.66,0.00034519,2]
[341280253,1730740268498,-500.0,0.00034519,2]
[341280254,1730740268507,-500.0,0.00034519,2]
[341280255,1730740268516,-500.0,0.00034519,2]
[341280256,1730740268525,-500.0,0.00034519,2]
[341280257,1730740268534,-454.14,0.00034519,2]
[341280258,1730740268543,-159.51,0.00034519,2]
[341280259,1730740268552,-500.0,0.00034519,2]
[341280260,1730740268562,-500.0,0.00034519,2]
[341280261,1730740268571,-500.0,0.00034519,2]
[341280262,1730740268581,-266.30267352,0.00034519,2]
[341280263,1730740268593,-608.42,0.00034519,2]
[341280264,1730740268602,-500.0,0.00034519,2]
[341280265,1730740268612,-507.03819598,0.00034519,2]
[341280266,1730740268621,-500.0,0.00034519,2]
[341280267,1730740268630,-500.0,0.00034519,2]
[341280268,1730740268639,-188.58,0.00034519,2]
[341280269,1730740268657,-425.44,0.00034519,2]
[341280270,1730740268667,-500.0,0.00034519,2]
[341280271,1730740268678,-638.88,0.00034519,2]
[341280272,1730740268688,-420.4701907,0.00034519,2]
[341280273,1730740268697,-500.0,0.00034519,2]
[341280274,1730740268707,-374.95825743,0.00034519,2]
[341280275,1730740268716,-500.0,0.00034519,2]
[341280276,1730740268726,-493.76,0.00034519,2]
[341280277,1730740268736,-500.0,0.00034519,2]
[341280278,1730740268746,-340.74,0.00034519,2]
[341280279,1730740268756,-516.93346454,0.00034519,2]
[341280280,1730740268766,-500.0,0.00034519,2]
[341280281,1730740268776,-500.0,0.00034519,2]
[341280282,1730740268785,-500.0,0.00034519,2]
[341280283,1730740268795,-500.0,0.00034519,2]
[341280284,1730740268804,-500.0,0.00034519,2]
[341280285,1730740268814,-255.9,0.00034519,2]
[341280286,1730740268824,-500.0,0.00034519,2]
[341280287,1730740268834,-469.1,0.00034519,2]
[341280288,1730740268843,-500.0,0.00034519,2]
[341280289,1730740268853,-500.0,0.00034519,2]
[341280290,1730740268862,-742.97,0.00034519,2]
[341280291,1730740268871,-382.91421881,0.00034519,2]
[341280292,1730740268881,-500.0,0.00034519,2]
[341280293,1730740268890,-588.02,0.00034519,2]
[341280294,1730740268899,-684.77,0.00034519,2]
[341280295,1730740268909,-500.0,0.00034519,2]
[341280296,1730740268918,-500.0,0.00034519,2]
[341280297,1730740268928,-500.0,0.00034519,2]
[341280298,1730740268938,-5190.93,0.00034519,2]
[341280299,1730740268947,-351.2473902,0.00034519,2]
[341280300,1730740268957,-1333.28,0.00034519,2]
[341280301,1730740268967,-500.0,0.00034519,2]
[341280302,1730740268976,-500.0,0.00034519,2]
[341280303,1730740268986,-500.0,0.00034519,2]
[341280304,1730740268996,-500.0,0.00034519,2]
[341280305,1730740269006,-500.0,0.00034519,2]
[341280306,1730740269015,-500.0,0.00034519,2]